bitfinex-derivatives/quotes_BTCF0:USTF0_20240815
["timestamp","ask_amount","ask_price","bid_price","bid_amount"]
[1723723658873,0.27549135,58693.0,58692.0,0.41598397]
[1723723659073,0.19030735,58693.0,58692.0,0.41598397]
[1723723659382,0.27549135,58693.0,58692.0,0.33079797]
[1723723659680,0.47067535,58693.0,58692.0,0.33079797]
[1723723660784,0.538741,58693.0,58692.0,0.33079797]
[1723723661789,1.049861,58693.0,58692.0,0.33079797]
[1723723662185,0.98179535,58693.0,58692.0,0.33079797]
[1723723664492,0.47067535,58693.0,58692.0,0.33079797]
[1723723665984,0.38549135,58693.0,58692.0,0.33079797]
[1723723666386,0.47067535,58693.0,58692.0,0.33079797]
[1723723668298,0.38549135,58693.0,58692.0,0.33079797]
[1723723668480,0.27549135,58693.0,58692.0,0.33079797]
[1723723669087,0.36067535,58693.0,58692.0,0.33079797]
[1723723669384,0.47067535,58693.0,58692.0,0.33079797]
[1723723671989,0.58847535,58693.0,58692.0,0.33079797]
[1723723673791,0.58947535,58693.0,58692.0,0.32979797]
[1723723675089,0.50429135,58693.0,58692.0,0.32979797]
[1723723677481,0.50429135,58693.0,58692.0,0.41498397]
[1723723677482,0.21612335,58693.0,58692.0,0.41498397]
[1723723677684,0.21612335,58693.0,58692.0,0.56783721]
[1723723677685,0.01107899,58693.0,58692.0,0.56783721]
[1723723677890,0.01107899,58693.0,58692.0,0.50016997]
[1723723678086,0.01107899,58693.0,58692.0,1.77208997]
[1723723678286,0.01107899,58693.0,58692.0,1.85727597]
[1723723678591,0.01107899,58693.0,58692.0,1.94177637]
[1723723678798,0.01107899,58693.0,58692.0,1.86722442]
[1723723684398,0.01107899,58693.0,58692.0,1.46722442]
[1723723684803,0.09626299,58693.0,58692.0,1.45727597]
[1723723685100,0.18144699,58693.0,58692.0,0.41498397]
[1723723685405,0.44769669,58693.0,58692.0,0.32979797]
[1723723685614,0.39663099,58693.0,58692.0,0.32979797]
[1723723685902,0.26663099,58693.0,58692.0,0.32979797]
[1723723687105,0.33472154,58693.0,58692.0,0.32979797]
[1723723689000,0.26663099,58693.0,58692.0,0.32979797]
[1723723689395,0.39663099,58693.0,58692.0,0.32979797]
[1723723690302,0.75743099,58693.0,58692.0,0.32979797]
[1723723690806,0.8254785,58693.0,58692.0,0.32979797]
[1723723691602,0.84261499,58693.0,58692.0,0.32979797]
[1723723698713,0.48181499,58693.0,58692.0,0.32979797]
[1723723699008,0.84261499,58693.0,58692.0,0.32979797]
[1723723699912,0.96041499,58693.0,58692.0,0.32979797]
[1723723711817,1.12041499,58693.0,58692.0,0.32979797]
[1723723713623,0.96041499,58693.0,58692.0,0.32979797]
[1723723715429,0.9880339,58693.0,58692.0,0.32979797]
[1723723717229,0.6272339,58693.0,58692.0,0.32979797]
[1723723717622,0.9880339,58693.0,58692.0,0.32979797]
[1723723718620,1.3488339,58693.0,58692.0,0.32979797]
[1723723719229,1.5188339,58693.0,58692.0,0.32979797]
[1723723720119,1.51883404,58693.0,58692.0,0.32979797]
[1723723720731,1.51883404,58693.0,58692.0,0.38056423]
[1723723724529,1.51883428,58693.0,58692.0,0.38056423]
[1723723725635,1.51883428,58693.0,58692.0,0.32979797]
[1723723726837,1.15803428,58693.0,58692.0,0.32979797]
[1723723727936,1.15803428,58693.0,58692.0,0.38068135]
[1723723728132,1.15803428,58693.0,58692.0,0.32979797]
[1723723729230,1.15803398,58693.0,58692.0,0.32979797]
[1723723733430,1.15803392,58693.0,58692.0,0.32979797]
[1723723734742,1.15803392,58693.0,58692.0,0.03180736]
[1723723735441,1.15803392,58693.0,58692.0,0.08268457]
[1723723739540,1.13041499,58693.0,58692.0,0.08268457]
[1723723739846,1.15803392,58693.0,58692.0,0.08268457]
[1723723740239,1.04023392,58693.0,58692.0,0.08268457]
[1723723740439,1.15803392,58693.0,58692.0,0.08268457]
[1723723741342,1.15803391,58693.0,58692.0,0.08268457]
[1723723745735,1.15803391,58693.0,58692.0,0.08268324]
[1723723746641,1.15803361,58693.0,58692.0,0.08268324]
[1723723747246,1.15803361,58693.0,58692.0,0.03180736]
[1723723749251,0.79723361,58693.0,58692.0,0.03180736]
[1723723749555,1.15803361,58693.0,58692.0,0.03180736]
[1723723749856,1.04023361,58693.0,58692.0,0.03180736]
[1723723750053,1.15803361,58693.0,58692.0,0.03180736]
[1723723750548,1.15803357,58693.0,58692.0,0.03180736]
[1723723756954,1.04023357,58693.0,58692.0,0.08268717]
[1723723757153,1.15803357,58693.0,58692.0,0.08268717]
[1723723758061,0.79723357,58693.0,58692.0,0.08268717]
[1723723758249,1.15803357,58693.0,58692.0,0.08268717]
[1723723759555,1.15803358,58693.0,58692.0,0.08268717]
[1723723763658,0.29924699,58693.0,58692.0,0.03180736]
[1723723763856,0.54224699,58693.0,58692.0,0.03180736]
[1723723764058,0.29924699,58693.0,58692.0,0.09949571]
[1723723764452,0.29924699,58693.0,58692.0,0.16139571]
[1723723764453,0.21406299,58693.0,58692.0,0.16139571]
[1723723764855,0.29924699,58693.0,58692.0,0.16139571]
[1723723765365,0.29924699,58693.0,58692.0,0.09370736]
[1723723765659,0.29924699,58693.0,58692.0,0.03180736]
[1723723765660,0.50443099,58693.0,58692.0,0.03180736]
[1723723765853,0.58965134,58693.0,58692.0,0.08264804]
[1723723766357,0.50443099,58693.0,58692.0,0.03180736]
[1723723767446,0.53204898,58693.0,58692.0,0.03180736]
[1723723767765,0.50443099,58693.0,58692.0,0.03180736]
[1723723768261,0.65443099,58693.0,58692.0,0.03180736]
[1723723768459,0.68204967,58693.0,58692.0,0.03180736]
[1723723769157,0.73961895,58693.0,58692.0,0.08264804]
[1723723769364,0.73961895,58693.0,58692.0,0.03180736]
[1723723769365,0.68204954,58693.0,58692.0,0.03180736]
[1723723769566,0.73961527,58693.0,58692.0,0.03180736]
[1723723770061,0.73961539,58693.0,58692.0,0.08264804]
[1723723770358,0.40443099,58693.0,58692.0,0.03180736]
[1723723771154,0.48961656,58693.0,58692.0,0.082652]
[1723723771660,0.40443099,58693.0,58692.0,0.08265602]
[1723723771866,0.48961789,58693.0,58692.0,0.03180736]
[1723723773965,0.48962039,58693.0,58692.0,0.03180736]
[1723723774169,0.40443099,58693.0,58692.0,0.03180736]
[1723723774370,0.48961939,58693.0,58692.0,0.03180736]
[1723723775776,0.48962035,58693.0,58692.0,0.03180736]
[1723723776070,0.40443099,58693.0,58692.0,0.03180736]
[1723723776272,0.40443099,58693.0,58692.0,0.08266067]
[1723723776469,0.40443099,58693.0,58692.0,0.03180736]
[1723723776669,0.48962089,58693.0,58692.0,0.03180736]
[1723723779178,0.48962089,58693.0,58692.0,0.08265093]
[1723723780083,0.85042089,58693.0,58692.0,0.08265093]
[1723723780291,1.01041499,58693.0,58692.0,0.00470838]
[1723723780476,0.7824816,58693.0,58689.0,0.05084978]
[1723723780784,0.25557,58689.0,58688.0,0.05084978]
[1723723781086,0.92856248,58689.0,58688.0,0.05084978]
[1723723781287,0.92856248,58689.0,58683.0,0.4193]
[1723723781288,0.255576,58688.0,58687.0,0.05084978]
[1723723781591,0.170392,58685.0,58684.0,0.06768835]
[1723723781882,0.170394,58684.0,58683.0,0.4193]
[1723723782083,0.3870348,58684.0,58683.0,0.4193]
[1723723782287,0.31888422,58684.0,58683.0,0.4193]
[1723723782488,0.32880422,58684.0,58683.0,0.4193]
[1723723783188,0.32880422,58684.0,58683.0,0.0585]
[1723723783893,0.32980422,58684.0,58683.0,0.0585]
[1723723784285,0.33080422,58684.0,58683.0,0.0595]
[1723723785281,0.33080422,58684.0,58683.0,0.05964173]
[1723723785992,0.3407963,58684.0,58683.0,0.05964173]
[1723723786177,0.4259933,58684.0,58683.0,0.05964173]
[1723723786680,0.49414388,58684.0,58683.0,0.05964173]
[1723723786881,0.49414388,58684.0,58683.0,0.1274254]
[1723723787083,0.4259933,58684.0,58683.0,0.05964173]
[1723723795091,0.4269933,58684.0,58683.0,0.05964173]
[1723723795797,0.4269933,58684.0,58683.0,0.00114173]
[1723723795994,0.51237731,58684.0,58683.0,0.05195773]
[1723723796295,0.51337731,58684.0,58683.0,0.00114173]
[1723723798696,0.255597,58683.0,58682.0,0.32743272]
[1723723798898,1.061596,58683.0,58682.0,0.32743272]
[1723723799990,1.062636,58683.0,58682.0,0.32743272]
[1723723800189,1.063636,58683.0,58682.0,0.32743272]
[1723723800609,1.181436,58683.0,58682.0,0.32743272]
[1723723804103,1.26662848,58683.0,58682.0,0.27432384]
[1723723804301,0.340832,58677.0,58676.0,0.065]
[1723723804503,0.340832,58677.0,58673.0,0.050816]
[1723723804504,0.255636,58674.0,58673.0,0.050816]
[1723723804801,0.255639,58673.0,58672.0,0.79818347]
[1723723805105,0.56582601,58673.0,58672.0,0.79726347]
[1723723805696,0.48061301,58673.0,58672.0,0.79726347]
[1723723806009,0.54883411,58673.0,58672.0,0.38564747]
[1723723806300,0.54883411,58673.0,58672.0,0.32474747]
[1723723806505,0.49045887,58673.0,58672.0,0.32474747]
[1723723806698,0.5585321,58673.0,58672.0,0.32474747]
[1723723807006,0.49145887,58673.0,58672.0,0.32474747]
[1723723808906,0.49245887,58673.0,58672.0,0.32474747]
[1723723810106,0.5605321,58673.0,58672.0,0.32474747]
[1723723810410,0.49245887,58673.0,58672.0,0.32474747]
[1723723811201,0.5605321,58673.0,58672.0,0.32474747]
[1723723813803,0.21504587,58673.0,58672.0,0.32474747]
[1723723814206,0.22495587,58673.0,58672.0,0.32474747]
[1723723814512,0.22495587,58673.0,58672.0,0.37556347]
[1723723814705,0.31016887,58673.0,58672.0,0.32474747]
[1723723815014,0.36119206,58673.0,58672.0,0.32474747]
[1723723817313,0.31016887,58673.0,58672.0,0.32474747]
[1723723817910,0.36120449,58673.0,58672.0,0.32474747]
[1723723818212,0.36120449,58673.0,58672.0,0.40996247]
[1723723818409,0.36120449,58673.0,58672.0,0.32474747]
[1723723819628,0.44641749,58673.0,58672.0,0.32474747]
[1723723819819,0.36120449,58673.0,58672.0,0.32474747]
[1723723820203,0.44641749,58673.0,58672.0,0.32474747]
[1723723820405,0.36120449,58673.0,58672.0,0.32474747]
[1723723820813,0.36120449,58673.0,58672.0,0.40996247]
[1723723821113,0.31016887,58673.0,58672.0,0.40996247]
[1723723821807,0.36120449,58673.0,58672.0,0.40996247]
[1723723825418,0.31016887,58673.0,58672.0,0.40996247]
[1723723826210,0.31016887,58673.0,58672.0,0.47774614]
[1723723826613,0.31016887,58673.0,58672.0,0.39253114]
[1723723827314,0.40538187,58673.0,58672.0,0.39253114]
[1723723827512,0.40538187,58673.0,58672.0,0.32474747]
[1723723827715,0.4734551,58673.0,58672.0,0.32474747]
[1723723828307,0.255645,58672.0,58671.0,0.00019387]
[1723723828514,0.085219,58669.0,58668.0,0.05088004]
[1723723828717,0.170442,58668.0,58667.0,0.05088004]
[1723723829018,0.170442,58668.0,58664.0,0.51380967]
[1723723829019,0.085224,58666.0,58665.0,0.05088535]
[1723723829220,0.27114184,58666.0,58665.0,0.05088535]
[1723723829520,0.35636584,58666.0,58665.0,0.05088535]
[1723723830230,0.44158984,58666.0,58665.0,0.05088535]
[1723723830414,0.35751371,58666.0,58665.0,0.05088535]
[1723723830723,0.35851371,58666.0,58665.0,0.05088535]
[1723723831025,0.37851371,58666.0,58665.0,0.05088535]
[1723723831215,0.17045,58665.0,58664.0,0.41168535]
[1723723831723,0.17045,58665.0,58664.0,0.3608]
[1723723832323,0.19045,58665.0,58664.0,0.3608]
[1723723832518,0.25971571,58665.0,58664.0,0.3608]
[1723723832725,0.26071571,58665.0,58664.0,0.3608]
[1723723833526,0.27080078,58665.0,58664.0,0.3608]
[1723723833926,0.28070078,58665.0,58664.0,0.3608]
[1723723834316,0.21258294,58665.0,58664.0,0.41166366]
[1723723834611,0.29780794,58665.0,58664.0,0.41166366]
[1723723835030,0.29780794,58665.0,58664.0,0.3608]
[1723723835218,0.29780794,58665.0,58664.0,0.41166677]
[1723723837618,0.29780794,58665.0,58662.0,0.37308517]
[1723723837619,0.255684,58663.0,58662.0,0.37308517]
[1723723837819,0.60156424,58663.0,58662.0,0.32222222]
[1723723838026,0.533484,58663.0,58662.0,0.32222222]
[1723723839026,0.53363187,58663.0,58662.0,0.32222222]
[1723723839824,0.53563187,58663.0,58662.0,0.32222222]
[1723723840235,0.60369095,58663.0,58662.0,0.32222222]
[1723723841229,0.68906769,58663.0,58662.0,0.32222222]
[1723723841421,0.64864194,58663.0,58662.0,0.31666222]
[1723723842930,0.64864194,58663.0,58662.0,0.27827469]
[1723723843431,0.340972,58653.0,58652.0,0.30179696]
[1723723843622,0.085256,58644.0,58637.0,0.00014792]
[1723723843819,0.649114,58643.0,58637.0,0.00014792]
[1723723844024,0.83938263,58643.0,58637.0,0.00014792]
[1723723844224,1.14996461,58643.0,58637.0,0.00014792]
[1723723844530,0.8070082,58643.0,58637.0,0.00014792]
[1723723844734,0.9248082,58643.0,58637.0,0.00014792]
[1723723844922,0.92495607,58643.0,58637.0,0.00014792]
[1723723845238,0.92495607,58643.0,58637.0,0.08541292]
[1723723845430,0.92495607,58643.0,58637.0,0.00014792]
[1723723845735,1.02027981,58643.0,58637.0,0.00014792]
[1723723846135,1.02127981,58643.0,58637.0,0.00014792]
[1723723846333,1.02227981,58643.0,58637.0,0.00014792]
[1723723846834,0.93702281,58643.0,58637.0,0.08541292]
[1723723847237,1.02227981,58643.0,58637.0,0.08541292]
[1723723847437,0.93702281,58643.0,58638.0,0.085264]
[1723723847626,0.93702281,58643.0,58638.0,0.0664]
[1723723847830,0.00229907,58643.0,58642.0,1.11704771]
[1723723848034,0.00229907,58643.0,58642.0,1.20230571]
[1723723848229,0.00229907,58643.0,58642.0,1.11704771]
[1723723848629,0.00229907,58643.0,58642.0,1.51704771]
[1723723848836,0.00229907,58643.0,58642.0,1.52701444]
[1723723850942,0.00229907,58643.0,58642.0,1.61227244]
[1723723851540,1e-08,58643.0,58642.0,1.61227244]
[1723723851735,0.00990001,58643.0,58642.0,1.61242031]
[1723723852536,0.01007072,58643.0,58642.0,1.67662031]
[1723723854934,0.01007072,58643.0,58642.0,1.76187831]
[1723723855330,0.0678472,58659.0,58654.0,0.085241]
[1723723855540,0.085231,58661.0,58660.0,0.085231]
[1723723855730,0.05087405,58664.0,58662.0,0.170458]
[1723723855935,0.085228,58663.0,58662.0,0.170458]
[1723723856440,0.0508784,58668.0,58662.0,0.9114]
[1723723856636,5.897e-05,58667.0,58666.0,0.170448]
[1723723856840,5.897e-05,58667.0,58666.0,0.255672]
[1723723857156,5.897e-05,58667.0,58666.0,1.167032]
[1723723858231,0.00305897,58667.0,58666.0,1.167032]
[1723723858435,0.00405897,58667.0,58666.0,0.828332]
[1723723858649,0.00405897,58667.0,58666.0,1.228332]
[1723723858840,0.00405897,58667.0,58666.0,0.828332]
[1723723859248,0.00305897,58667.0,58666.0,1.229332]
[1723723859448,0.00305897,58667.0,58666.0,1.144108]
[1723723859655,0.08828097,58667.0,58666.0,0.658884]
[1723723860354,0.08528097,58667.0,58666.0,1.058884]
[1723723860653,0.08528097,58667.0,58666.0,0.659884]
[1723723861243,0.17050297,58667.0,58666.0,0.087224]
[1723723862140,0.08528097,58667.0,58666.0,0.087224]
[1723723862549,0.17050297,58667.0,58666.0,0.087224]
[1723723862854,0.09521487,58667.0,58666.0,0.087224]
[1723723863242,0.18043687,58667.0,58666.0,0.087224]
[1723723863436,0.09521487,58667.0,58666.0,0.087224]
[1723723863750,0.18043687,58667.0,58666.0,0.087224]
[1723723863950,0.170468,58659.0,58657.0,0.00025567]
[1723723864148,0.085234,58659.0,58658.0,0.446035]
[1723723865146,0.087234,58659.0,58658.0,0.453035]
[1723723865354,0.087274,58659.0,58658.0,0.453035]
[1723723865547,0.087274,58659.0,58658.0,1.04971]
[1723723865746,0.087274,58659.0,58658.0,1.44971]
[1723723865943,0.087274,58659.0,58658.0,1.364475]
[1723723866851,0.086274,58659.0,58658.0,1.44471]
[1723723867051,0.00104,58659.0,58658.0,1.44471]
[1723723867250,5.897e-05,58667.0,58666.0,0.170448]
[1723723867445,5.897e-05,58667.0,58666.0,0.255672]
[1723723867640,0.08528097,58667.0,58666.0,0.656284]
[1723723867842,5.897e-05,58667.0,58666.0,1.141508]
[1723723868447,5.897e-05,58667.0,58666.0,1.226772]
[1723723869255,0.01505897,58667.0,58666.0,1.227772]
[1723723869946,0.01505897,58667.0,58666.0,1.23743258]
[1723723870252,0.01505897,58667.0,58666.0,0.827772]
[1723723870555,0.00605897,58667.0,58666.0,0.315412]
[1723723870741,0.00905897,58667.0,58666.0,0.315412]
[1723723870948,0.00305897,58667.0,58666.0,0.315412]
[1723723871147,0.00305897,58667.0,58666.0,0.827772]
[1723723871347,0.00305897,58667.0,58666.0,1.227772]
[1723723871854,0.13604201,58674.0,58673.0,0.085213]
[1723723872059,0.085212,58674.0,58673.0,0.085213]
[1723723872957,0.093212,58674.0,58673.0,0.085213]
[1723723873158,0.093212,58674.0,58673.0,0.085253]
[1723723873355,0.008,58674.0,58673.0,0.170466]
[1723723873548,0.093212,58674.0,58673.0,0.085253]
[1723723873855,0.093212,58674.0,58673.0,0.086253]
[1723723874060,0.104212,58674.0,58673.0,0.171466]
[1723723874262,0.104212,58674.0,58673.0,0.086253]
[1723723874462,0.100212,58674.0,58673.0,0.171466]
[1723723874757,0.096212,58674.0,58673.0,0.682786]
[1723723875360,0.096212,58674.0,58673.0,0.597573]
[1723723876246,0.011,58674.0,58673.0,0.682786]
[1723723876447,0.3608,58693.0,58683.0,0.170398]
[1723723876448,0.06780322,58687.0,58683.0,0.170398]
[1723723876763,0.00092,58687.0,58683.0,0.910997]
[1723723876960,0.00988536,58690.0,58683.0,1.822197]
[1723723877157,0.05084788,58692.0,58690.0,0.170378]
[1723723877345,0.3608,58693.0,58690.0,0.255567]
[1723723877550,0.085181,58696.0,58690.0,1.527527]
[1723723877747,0.08543667,58696.0,58690.0,1.527527]
[1723723877951,0.00025567,58696.0,58690.0,1.527527]
[1723723878148,0.085183,58694.0,58690.0,1.442338]
[1723723878353,0.085187,58692.0,58690.0,0.931218]
[1723723878657,0.085187,58692.0,58690.0,1.042378]
[1723723879161,0.01018173,58691.0,58690.0,1.45305934]
[1723723880459,0.01018173,58691.0,58690.0,1.05305934]
[1723723881362,0.01018173,58691.0,58690.0,1.45305934]
[1723723882169,0.01018173,58691.0,58690.0,1.53824834]
[1723723882862,0.08543567,58696.0,58695.0,0.085182]
[1723723883468,0.08543567,58696.0,58695.0,0.170364]
[1723723884052,0.08543567,58696.0,58695.0,0.17095302]
[1723723884367,0.09743567,58696.0,58695.0,0.17095302]
[1723723884954,0.01225567,58696.0,58695.0,0.17095302]
[1723723885355,0.01225567,58696.0,58695.0,0.17195302]
[1723723885763,0.09743567,58696.0,58695.0,0.17195302]
[1723723887180,0.01225567,58696.0,58695.0,0.17195302]
[1723723887765,0.09743567,58696.0,58695.0,0.17195302]
[1723723889762,0.09743567,58696.0,58695.0,0.53275302]
[1723723891178,0.09743567,58696.0,58695.0,0.44757102]
[1723723891472,0.09743567,58696.0,58695.0,0.08677102]
[1723723891473,0.26779567,58696.0,58695.0,0.08677102]
[1723723892078,0.27779567,58696.0,58695.0,0.08677102]
[1723723892879,0.26779567,58696.0,58695.0,0.08677102]
[1723723895178,0.31866455,58696.0,58695.0,0.04416211]
[1723723895382,0.31861669,58696.0,58695.0,0.04416211]
[1723723895575,0.31861705,58696.0,58695.0,0.04416211]
[1723723895970,0.31861721,58696.0,58695.0,0.04416211]
[1723723896171,0.26779567,58696.0,58695.0,0.04416211]
[1723723897279,0.27771158,58696.0,58695.0,0.04416211]
[1723723897776,0.3455148,58696.0,58695.0,0.04416211]
[1723723898279,0.3455148,58696.0,58695.0,0.00158902]
[1723723898479,0.27771158,58696.0,58695.0,0.00158902]
[1723723899476,0.27771158,58696.0,58695.0,0.08677102]
[1723723903083,0.27771158,58696.0,58695.0,0.00158902]
[1723723903378,0.27771158,58696.0,58685.0,0.08545067]
[1723723903379,0.17039,58686.0,58685.0,0.08545067]
[1723723903586,0.32357453,58686.0,58685.0,0.00025567]
[1723723903772,0.73663034,58686.0,58685.0,0.00025567]
[1723723904080,0.73663034,58686.0,58674.0,0.413712]
[1723723904081,0.085211,58675.0,58674.0,0.413712]
[1723723904386,0.085208,58677.0,58676.0,0.085209]
[1723723905470,0.170416,58677.0,58676.0,0.085209]
[1723723905674,0.170416,58677.0,58676.0,0.085249]
[1723723906181,0.06797691,58678.0,58677.0,0.255624]
[1723723906382,0.085204,58680.0,58679.0,0.085203]
[1723723906769,0.170409,58680.0,58679.0,0.085203]
[1723723907180,0.23838591,58680.0,58679.0,0.085203]
[1723723907383,0.085208,58678.0,58677.0,0.085206]
[1723723907680,0.170416,58677.0,58676.0,4e-05]
[1723723908381,0.260624,58677.0,58676.0,4e-05]
[1723723908775,0.345832,58677.0,58676.0,4e-05]
[1723723908980,0.17043,58672.0,58671.0,0.00025567]
[1723723909171,0.32361619,58672.0,58671.0,0.00025567]
[1723723909485,0.32361619,58672.0,58671.0,0.08547167]
[1723723909486,0.17043,58672.0,58671.0,0.08547167]
[1723723909705,0.23253,58672.0,58671.0,0.08547167]
[1723723910274,0.23257,58672.0,58671.0,0.08547167]
[1723723910471,0.147355,58672.0,58671.0,0.08547167]
[1723723910675,0.13617832,58672.0,58671.0,0.08547167]
[1723723910887,0.085255,58672.0,58671.0,0.08547167]
[1723723911885,0.086255,58672.0,58671.0,0.08547167]
[1723723912876,0.17147,58672.0,58671.0,0.08547167]
[1723723917199,0.086255,58672.0,58671.0,0.08547167]
[1723723917389,0.086255,58672.0,58671.0,0.17068767]
[1723723919291,0.086255,58672.0,58671.0,0.08547167]
[1723723919795,0.17147,58672.0,58671.0,0.08547167]
[1723723922483,0.086255,58672.0,58671.0,0.08547167]
[1723723922978,0.086255,58672.0,58671.0,0.17068767]
[1723723923990,0.17147,58672.0,58671.0,0.08547167]
[1723723928286,0.17147,58672.0,58671.0,0.00025567]
[1723723929600,0.256685,58672.0,58671.0,0.08547167]
[1723723930086,0.256685,58672.0,58671.0,0.00025567]
[1723723930597,1.25322,58672.0,58671.0,0.00025567]
[1723723930792,0.255684,58663.0,58662.0,0.3608]
[1723723931098,0.170456,58663.0,58662.0,0.3608]
[1723723931998,0.171496,58663.0,58662.0,0.446029]
[1723723932302,0.172496,58663.0,58662.0,0.455029]
[1723723933297,0.257724,58663.0,58662.0,0.009]
[1723723933490,0.172496,58663.0,58662.0,0.009]
[1723723935699,0.257724,58663.0,58662.0,0.009]
[1723723935895,0.172496,58663.0,58662.0,0.009]
[1723723936202,0.257724,58663.0,58662.0,0.009]
[1723723936504,0.255705,58658.0,58657.0,0.00025567]
[1723723936801,0.616505,58658.0,58657.0,0.00025567]
[1723723937810,0.616545,58658.0,58657.0,0.00025567]
[1723723938300,0.618545,58658.0,58657.0,0.00825567]
[1723723938702,0.617545,58658.0,58657.0,0.00025567]
[1723723939004,0.620545,58658.0,58657.0,0.00025567]
[1723723939408,0.619545,58658.0,58657.0,0.00025567]
[1723723939594,0.620545,58658.0,58657.0,0.00025567]
[1723723942106,0.621545,58658.0,58657.0,0.00025567]
[1723723942593,0.622545,58658.0,58657.0,0.00025567]
[1723723943406,0.632545,58658.0,58657.0,0.00025567]
[1723723944296,0.622545,58658.0,58657.0,0.00025567]
[1723723946401,0.642545,58658.0,58657.0,0.00011187]
[1723723946702,0.71048696,58658.0,58657.0,0.00011187]
[1723723947297,0.32968696,58658.0,58657.0,0.00011187]
[1723723950306,0.32968696,58658.0,58657.0,0.08534887]
[1723723950503,0.24447627,58658.0,58657.0,0.08534887]
[1723723950700,0.17651,58658.0,58657.0,0.08534887]
[1723723950901,0.091275,58658.0,58657.0,0.17058587]
[1723723951103,0.05701218,58658.0,58657.0,0.34105987]
[1723723951303,0.06796627,58663.0,58661.0,0.085231]
[1723723951602,0.08547667,58668.0,58667.0,0.085222]
[1723723951800,0.00025567,58668.0,58667.0,0.170444]
[1723723951997,0.00025567,58668.0,58667.0,0.255666]
[1723723952409,0.13662894,58695.0,58668.0,0.085221]
[1723723952410,0.05097827,58672.0,58668.0,0.085221]
[1723723952707,0.085198,58684.0,58668.0,0.085221]
[1723723952708,0.05097827,58675.0,58674.0,0.255636]
[1723723953008,0.05097827,58679.0,58678.0,0.255618]
[1723723953217,0.05097827,58683.0,58680.0,0.085203]
[1723723953411,0.05097827,58685.0,58684.0,0.085197]
[1723723953605,0.05097827,58685.0,58684.0,0.170394]
[1723723953813,0.41177827,58686.0,58685.0,0.085196]
[1723723954106,0.445995,58686.0,58685.0,0.085196]
[1723723954312,0.49689982,58686.0,58685.0,0.085196]
[1723723954903,0.41170482,58686.0,58685.0,0.085196]
[1723723955103,0.41170482,58686.0,58685.0,0.085236]
[1723723955313,0.3608,58686.0,58685.0,0.085236]
[1723723955908,0.00025567,58687.0,58686.0,0.085195]
[1723723956220,0.00025567,58687.0,58686.0,0.550185]
[1723723956909,0.00062902,58695.0,58694.0,0.085183]
[1723723958213,0.08581102,58695.0,58694.0,0.085223]
[1723723959216,0.11081102,58695.0,58694.0,0.086223]
[1723723960218,0.11081102,58695.0,58686.0,0.2946]
[1723723960430,0.08519,58691.0,58690.0,0.085185]
[1723723960711,0.085184,58694.0,58693.0,0.085183]
[1723723962106,0.085184,58694.0,58693.0,0.085223]
[1723723962630,0.107184,58694.0,58693.0,0.086223]
[1723723964616,0.107184,58694.0,58693.0,0.256591]
[1723723964617,0.022,58694.0,58693.0,0.256591]
[1723723965014,0.022,58694.0,58693.0,0.26637511]
[1723723969614,0.022,58694.0,58693.0,0.33007511]
[1723723971527,0.022,58694.0,58693.0,0.26637511]
[1723723976011,0.022,58694.0,58693.0,0.62717511]
[1723723981219,0.022,58694.0,58693.0,0.67801397]
[1723723982220,0.07290482,58694.0,58693.0,0.62717511]
[1723723982518,0.06796627,58698.0,58697.0,0.085179]
[1723723982714,0.06796627,58699.0,58698.0,0.085177]
[1723723983126,0.06796627,58699.0,58698.0,0.255531]
[1723723983323,0.08543067,58700.0,58699.0,0.170352]
[1723723983727,0.08543067,58700.0,58699.0,0.22129397]
[1723723983919,0.17060567,58700.0,58699.0,0.13611797]
[1723723984136,0.17060567,58700.0,58699.0,0.085176]
[1723723984517,0.17060567,58700.0,58699.0,0.17153117]
[1723723984715,0.18460567,58700.0,58699.0,0.08735517]
[1723723984920,0.19860567,58700.0,58699.0,0.08735517]
[1723723985127,0.19860567,58700.0,58699.0,0.17253117]
[1723723985329,0.19860567,58700.0,58699.0,0.22347314]
[1723723985828,0.19860567,58700.0,58699.0,0.13829714]
[1723723986131,0.11343067,58700.0,58699.0,0.34127314]
[1723723986332,0.11343067,58700.0,58699.0,0.29033117]
[1723723987130,0.11343067,58700.0,58699.0,0.30041605]
[1723723987437,0.11343067,58700.0,58699.0,0.29033117]
[1723723987736,0.11343067,58700.0,58699.0,0.37550717]
[1723723988028,0.02825567,58700.0,58699.0,0.37550717]
[1723723988336,0.02825567,58700.0,58699.0,0.42656922]
[1723723988935,0.02825567,58700.0,58699.0,0.37550717]
[1723723989822,0.02825567,58700.0,58699.0,0.51174299]
[1723723990029,0.02825567,58700.0,58699.0,0.42656699]
[1723723990228,0.10199994,58708.0,58699.0,0.99185917]
[1723723990427,0.17020633,58709.0,58707.0,0.16886312]
[1723723990629,0.08504433,58710.0,58708.0,0.1178]
[1723723990930,0.08504433,58710.0,58705.0,0.3608]
[1723723990931,0.17020333,58711.0,58710.0,0.17032]
[1723723991328,0.085159,58711.0,58710.0,0.17032]
[1723723991533,0.17015369,58711.0,58710.0,0.17032]
[1723723991732,0.085159,58711.0,58710.0,0.17032]
[1723723992134,0.44579469,58712.0,58711.0,0.170316]
[1723723992331,0.44579469,58712.0,58711.0,0.255474]
[1723723992537,0.3608,58712.0,58711.0,0.255474]
[1723723992737,0.445957,58712.0,58711.0,0.255474]
[1723723993040,0.445957,58712.0,58711.0,0.085158]
[1723723993041,0.61610869,58712.0,58711.0,0.085158]
[1723723993234,0.616271,58712.0,58711.0,0.085158]
[1723723993437,0.616271,58712.0,58711.0,0.08633717]
[1723723993628,0.531114,58712.0,58711.0,0.08633717]
[1723723993829,0.61604973,58712.0,58711.0,0.08733717]
[1723723994333,0.61604973,58712.0,58711.0,0.08833717]
[1723723995049,0.70120673,58712.0,58711.0,0.08833717]
[1723723995229,0.64816796,58712.0,58711.0,0.00317917]
[1723723995428,0.64816796,58712.0,58711.0,0.00139296]
[1723723995740,0.64889703,58712.0,58711.0,0.00139296]
[1723723996037,0.64894574,58712.0,58711.0,0.00139296]
[1723723996442,0.61745017,58712.0,58711.0,0.00139296]
[1723723997229,0.70233016,58712.0,58711.0,0.00139296]
[1723723997726,0.71233016,58712.0,58711.0,0.00139296]
[1723723998639,0.62745017,58712.0,58711.0,0.00139296]
[1723724000344,0.71233016,58712.0,58711.0,0.00139296]
[1723724000546,0.62745017,58712.0,58711.0,0.00139296]
[1723724000841,0.78748716,58712.0,58711.0,0.00139296]
[1723724001045,0.80748716,58712.0,58711.0,0.00139296]
[1723724001244,0.72260717,58712.0,58711.0,0.00139296]
[1723724001629,0.70260717,58712.0,58711.0,0.00139296]
[1723724004142,0.70260717,58712.0,58711.0,0.08655096]